Workbook

Sheet Munka1
H1: A 3/2012.(IV.26.)rend.3.§ (2) bek.-el
D2: K I M U T A T Á S | L2: 2.sz.melléklet
B4: 2011.évi beszámoló működési és felhalmozási kiadásairól
L6: ezer Ft-ban
C7: Müködési kiadás | E7: átadott | G7: Szociá- | H7: Beru- | I7: Finanszí- | K7: Kiadások | L7: ebből
A8: CÍM száma, megnevezése | B8: személyi | C8: munkaad. | D8: dologi | E8: pénzeszközök | G8: lis | H8: házás | I8: rozás | K8: össze- | L8: felhal-
B9: jellegü | C9: járulékok | E9: műk. | F9: felh. | G9: jellegű | H9: felújítás | I9: műk | J9: felh. | K9: sen | L9: mozási
A10: I. Nyírkarász K.Önkorm.Polgárm.
A11: Hiv.és hozzátart. Alcímek
A12: 1. Önkormányzat igazgatási tev. | B12: 23272 | C12: 7301 | D12: 39509 | G12: 412 | K12: =SUM(B12:J12) -> 70494
A13: 2. Önkormányzatok pü. igazgatása
A14: 4.Város-és községg.másh.nem sor. | B14: 7283 | C14: 1841 | D14: 13439 | I14: 162 | K14: =SUM(B14:J14) -> 22725
A15: 6.Települési hull.kezelése,ártalm. | B15: 1124 | C15: 310 | D15: 1032 | I15: 31226 | K15: =SUM(B15:J15) -> 33692
A16: 8.Közvilágítás | D16: 715 | K16: =SUM(D16:J16) -> 715
A17: 10.Család-és nővédelmi eü.gond. | B17: 2190 | C17: 592 | D17: 815 | K17: =SUM(B17:J17) -> 3597
A18: 11.Ifjúság-és eü gond. | B18: 454 | C18: 519 | G18: 1686 | K18: =SUM(B18:J18) -> 2659
A19: 12.Rendszeres szoc.segély | C19: 418 | G19: 37799 | K19: =SUM(C19:J19) -> 38217
A20: 13.Időskorúak járadéka | G20: 1655 | K20: =SUM(G20:J20) -> 1655
A21: 14.Lakásfenntart.támog.norm.alap | G21: 11914 | K21: =SUM(G21:J21) -> 11914
A22: 15.Ápolási díj alanyi jogon | B22: 4721 | G22: 22661 | K22: =SUM(B22:J22) -> 27382
A23: 16.Ápolási díj méltányossági
A24: 17.Rendsz.gyemekvédelmi ellátás | G24: 4855 | K24: =SUM(G24:J24) -> 4855
A25: 19.Óvodáztatási támogatás | G25: 350 | K25: =SUM(G25:J25) -> 350
A26: 22.Rendkivüli gyermekvédelmi tám. | G26: 18 | K26: =SUM(G26:J26) -> 18
A27: 23.Mozgáskorlátozottak közl.tám. | G27: 1285 | K27: =SUM(G27:J27) -> 1285
A28: 24.Egyéb önk.eseti pénzb.ellátás | G28: 631 | K28: =SUM(G28:J28) -> 631
A29: 25.Közgyógyellátás
A30: 27.Önkorm.által nyújtott lakástám.
A31: 29.Közcélú foglalkoztatás | B31: 10299 | C31: 1473 | K31: =SUM(B31:J31) -> 11772
A32: 30.Közhasznú foglalkoztatás | B32: 12882 | C32: 2257 | K32: =SUM(B32:J32) -> 15139
A33: 32.Máshová nem sor.egyéb sporttám.
A34: 33.Köztemető fenntartási feladat | B34: 1442 | C34: 383 | D34: 177 | K34: =SUM(B34:J34) -> 2002
A35: 34.Nem lakóingatlan bérbeadása | D35: 2461 | K35: =SUM(C35:J35) -> 2461
A36: 35.OGY.képv.választ.kapcs.tev.
A37: 36.Önkorm.képvis.választ.kapcs.tev.
A38: 45.Szennyvíz kezelése
A39: 46.Finanszírozási műveletek
A40: II. Váci Mihály Általános Iskola
A41: Óvoda és hozzátart. Alcímek
A42: 1. Óvodai intézményi étkeztetés | B42: 1093 | C42: 296 | D42: 3657 | K42: =SUM(B42:J42) -> 5046
A43: 2. Iskolai intézményi étkeztetés
A44: 4. Óvodai nevelés,ellátás | B44: 27484 | C44: 7445 | D44: 3204 | K44: =SUM(B44:J44) -> 38133
A45: 6.Ált.isk.tanulók nevelése(1-4évf.) | B45: 32249 | C45: 8453 | D45: 1073 | K45: =SUM(B45:J45) -> 41775
A46: 8.Ált.isk.tanulók nevelése(5-8évf.) | B46: 78992 | C46: 23557 | D46: 14138 | K46: =SUM(B46:J46) -> 116687
A47: 10.Napközi otthoni nevelés | B47: 5185 | C47: 1400 | D47: 811 | K47: =SUM(B47:J47) -> 7396
A48: III. Idősek Otthona
A49: és hozzátart.alcímek
A50: 1.Időskorúak tartós bentl.szoc.ell. | B50: 20166 | C50: 5447 | D50: 18379 | I50: 289 | K50: =SUM(B50:J50) -> 44281
A51: 2.Demens betegek bentl.ellátása | B51: 6510 | C51: 1757 | D51: 811 | K51: =SUM(B51:J51) -> 9078
A52: 3. Idősek nappali ellátása | B52: 1451 | C52: 392 | K52: =SUM(B52:J52) -> 1843
A53: 4.Szociális étkeztetés | B53: 767 | C53: 207 | D53: 1997 | K53: =SUM(B53:J53) -> 2971
A54: Továbbadási célú kiadás
A55: Függő kiadás
A56: Címek összesen | B56: =SUM(B12:B55) -> 237564 | C56: =SUM(C12:C55) -> 64048 | D56: =SUM(D10:D55) -> 102218 | G56: =SUM(G12:G55) -> 83266 | I56: =SUM(I13:I55) -> 31677 | K56: =SUM(K12:K55) -> 518773

Sheet Munka2

Sheet Munka3
